Workbook

Sheet Introduction
A1: The tool is organized into different tabs, each addressing different potential contributors to the cost of institutional controls. Work through each tab, advancing by clicking directly on the tab or using the buttons. Each selection and input you provide will update the contents of the last tab, which will summarize the long-term costs and list recommendations and warnings for handling the contamination.
A8: Developed by the Institute of Water Research - Michigan State University
A9: 2024

Sheet Context
A1: Context
A3: This tool will generate cost estimates for allowing groundwater contaminants to run their course while protecting people from exposure through institutional controls. However, there are costs associated with such a scenario that are beyond the scope of this tool to estimate, but should be considered when evaluating options for responding to a contamination. Responding to the questions below can highlight those hard to quantify impacts.
A5: Public Trust
B6: Does the area affected by the contamination serve or is occupied by marginalized populations? | C6: no
B7: Does the affected area or region have a prior history of environmental contamination? | C7: no
B8: Have prior clean-up efforts in the affected area or region been adequate? | C8: yes
B9: Is there a viable liable party? | C9: yes
A12: Natural Resource and Recreational Quality
B13: Will the contamination threaten surface water resources? | C13: no
B14: Does the contamination threaten recreational areas? | C14: no
B15: Are the affected area's natural resources and features an important component of its economy and identity? | C15: no
A18: Public Health
B19: Will humans potentially be exposed to the contamination at levels that exceed safety criteria? | C19: no
A22: Foregone Development
B23: Could the contamination prohibit development on affected lands? | C23: no
B26: References
A27: 1 | B27: https://journals.sagepub.com/doi/10.1177/1468796815575382
A28: 2 | B28: https://ajph.aphapublications.org/doi/abs/10.2105/AJPH.2018.304621

Sheet Background
A1: Background | J1: Total Costs
A2: # | B2: Inputs | F2: Notes | J2: min | K2: =Results!D52 -> 0
A3: 1 | B3: How large is the affected area? | C3: 0 | D3: square miles | J3: expected | K3: =Results!E52 -> 0
A4: 2 | B4: Is the contaminant source contained? | C4: yes | J4: max | K4: =Results!F52 -> 0
A5: 3 | B5: How would you characterize the dominant geologic class of the affected aquifer? | C5: bedrock
A6: 4 | B6: Could the concentration of the contaminant in the aquifer increase in the future? | C6: no
A7: 5 | B7: Do you anticipate the contaminant plume expanding into the future? | C7: no
A8: 6 | B8: What is the time horizon for this analysis? | C8: 0 | D8: years

Sheet Properties
A1: Properties | J1: Total Costs
A2: # | B2: Inputs | F2: Notes | J2: min | K2: =Results!D52 -> 0
A3: 1 | B3: How many residential properties are currently affected? | C3: 0 | J3: expected | K3: =Results!E52 -> 0
A4: 2 | B4: How many commercial properties are currently affected? | C4: 0 | F4: =SUM(C3:C4) -> 0 | G4: total properties | J4: max | K4: =Results!F52 -> 0
A5: 3 | B5: How many acres of undeveloped land (which could be developed in the absence of use restrictions) may be affected? | C5: 0
A6: 4 | B6: How many acres of public land / parks may be affected? | C6: 0
A7: 5 | B7: What is the population of the affected area? | C7: 0

Sheet Water Access
A1: Water Access | J1: Total Costs
A2: # | B2: Inputs | F2: Notes | J2: min | K2: =Results!D52 -> 0
A3: 1 | B3: What percentage of currently affected properties require well abandonment? | C3: 0 | D3: % | J3: expected | K3: =Results!E52 -> 0
A4: 2 | B4: What percentage of currently affected properties require bottled water delivery? | C4: 0 | D4: % | J4: max | K4: =Results!F52 -> 0
A5: 3 | B5: For how long? | C5: 0 | D5: months
A6: 4 | B6: What percentage of currently affected properties require new connections to municipal water supply? | C6: 0 | D6: %
A7: 5a | B7: Are new water mains needed? | C7: no
A8: 5b | B8: If yes, estimate a total length of the new mains | C8: 0 | D8: feet

Sheet Monitoring
A1: Monitoring | J1: Total Costs
A2: # | B2: Inputs | F2: Notes | J2: min | K2: =Results!D52 -> 0
A3: Monitoring Well Installations | J3: expected | K3: =Results!E52 -> 0
A4: 1 | B4: How many monitoring wells must be installed? | C4: 0 | J4: max | K4: =Results!F52 -> 0
A5: 2 | B5: How long will those wells operate? | C5: 0 | D5: years
A6: 3 | B6: How frequently will results be analyzed? | C6: 0 | D6: times per year
A8: Residential/Commercial Water Monitoring
A9: 4a | B9: Is monitoring of residential or commercial water necessary? | C9: no
A10: 4b | B10: What percentage of affected properties require water testing? | C10: 0 | D10: %
A11: 4c | B11: For how long? | C11: 0 | D11: years
A12: 4d | B12: How frequently will results be analyzed? | C12: 0 | D12: times per year
A14: Air Monitoring
A15: 5a | B15: Is air monitoring necessary? | C15: no
A16: 5b | B16: What percentage of affected properties require air monitoring? | C16: 0 | D16: %
A17: 5c | B17: For how long | C17: 0 | D17: years
A18: 5d | B18: How frequently will residential results be analyzed? | C18: 0 | D18: times per year
A19: 5e | B19: What percentage of affected properties require air treatment systems? | C19: 0 | D19: %
A20: 5f | B20: For how long? | C20: 0 | D20: years
A21: 5g | B21: How frequently will results be analyzed? | C21: 0 | D21: times per year
A23: Soil Monitoring
A24: 6a | B24: Is long-term soil monitoring for VOC gases necessary? | C24: no
A25: 6b | B25: How many sites will require soil sampling? | C25: 0
A26: 6c | B26: For how long | C26: 0 | D26: years
A27: 6d | B27: For each site, on average, how many samples will be gathered? | C27: 0
A28: 6e | B28: How frequently will the samples be analyzed | C28: 0 | D28: times per year
A30: Surface Water Monitoring
A31: 7a | B31: Is surface water sampling necessary? | C31: no
A32: 7b | B32: How many surface water bodies require sampling? | C32: 0
A33: 7c | B33: For how long? | C33: 0 | D33: years
A34: 7d | B34: For each water body, on average, how many samples will be gathered? | C34: 0
A35: 7e | B35: How frequently will samples be analyzed? | C35: 0 | D35: times per year

Sheet Institutional Controls
A1: Institutional Controls | J1: Total Costs
A2: # | B2: Inputs | F2: Notes | J2: min | K2: =Results!D52 -> 0
A3: 1 | B3: What percentage of affected properties will require the adoption of restrictive covenants? | C3: 0 | D3: % | J3: expected | K3: =Results!E52 -> 0
A4: 2 | B4: How many ordinances will be implemented to protect the public from exposure? | C4: 0 | J4: max | K4: =Results!F52 -> 0

Sheet Oversight
A1: Oversight and Reporting | J1: Total Costs
A2: # | B2: Inputs | F2: Notes | J2: min | K2: =Results!D52 -> 0
A3: Staffing | J3: expected | K3: =Results!E52 -> 0
A4: 1 | B4: Estimate the staffing needs (contractors; local, state, and or federal agencies) for overseeing this project. Exclude FTE values associated with items previously represented in this spreadsheet, such as monitoring and reporting. | C4: 0 | D4: FTE | J4: max | K4: =Results!F52 -> 0
A5: 2 | B5: How long will those staffing needs be needed? | C5: 0 | D5: years
A7: Reporting
A8: 3 | B8: How frequently will reporting to regulatory agencies be required? | C8: 0 | D8: times per year
A9: 4 | B9: Is this an EPA superfund site? | C9: no
A10: 5 | B10: For how long? | C10: 0 | D10: years

Sheet Surface Water
A1: Surface Water Impacts | J1: Total Costs
A2: # | B2: Inputs | F2: Notes | J2: min | K2: =Results!D52 -> 0
A3: 1 | B3: Will the contamination threaten surface water resources? | C3: no | J3: expected | K3: =Results!E52 -> 0
A4: 2 | B4: If yes, will it likely exceed the acceptable criteria for supporting fish habitat? | C4: yes | J4: max | K4: =Results!F52 -> 0
A5: 3 | B5: Will the surface water contamination likely exceed the acceptable criteria for human contact? | C5: yes
A6: 4a | B6: Are beach closures likely? | C6: no
A7: 4b | B7: If yes, for how long? | C7: 10 | D7: years
A8: 4c | B8: How many visitors per week do the affected beaches receive? | C8: 0 | D8: per summer week
A9: 5a | B9: Will the surface water contamination prohibit recreational fishing? | C9: no
A10: 5b | B10: If yes, for how long? | C10: 0 | D10: years
A11: 5c | B11: Average weekly fishing days/trips affected | C11: 0 | D11: per week
A12: 6a | B12: Will the surface water contamination prohibit recreational boating? | C12: no
A13: 6b | B13: If yes, for how long? | C13: 0 | D13: years
A14: 6c | B14: Average weekly boating days/trips affected | C14: 0 | D14: per summer week

Sheet Results
A1: Warnings | C1: Costs
C2: item | D2: min | E2: expected | F2: max
C4: Water Access
C5: Well abandonment | D5: =Properties!$F$4*'Water Access'!$C$3/100*MIN('Cost Data Sources'!$D$17:$F$18) -> 0 | E5: =Properties!$F$4*'Water Access'!$C$3/100*MEDIAN('Cost Data Sources'!$D$17:$F$18) -> 0 | F5: =Properties!$F$4*'Water Access'!$C$3/100*MAX('Cost Data Sources'!$D$17:$F$18) -> 0
C6: Bottled water | D6: =Properties!$F$4*'Water Access'!$C$4/100*MIN('Cost Data Sources'!$D$21:$F$22)*'Water Access'!$C$5 -> 0 | E6: =Properties!$F$4*'Water Access'!$C$4/100*MEDIAN('Cost Data Sources'!$D$21:$F$22)*'Water Access'!$C$5 -> 0 | F6: =Properties!$F$4*'Water Access'!$C$4/100*MAX('Cost Data Sources'!$D$21:$F$22)*'Water Access'!$C$5 -> 0 | G6: over | H6: ='Water Access'!C5 -> 0 | I6: months
C7: Municipal water connections | D7: =Properties!$F$4*'Water Access'!$C$6/100*MIN('Cost Data Sources'!$D7,'Cost Data Sources'!$E7,'Cost Data Sources'!$F7,'Cost Data Sources'!$D9,'Cost Data Sources'!$E9,'Cost Data Sources'!$F9) -> 0 | E7: =Properties!$F$4*'Water Access'!$C$6/100*MEDIAN('Cost Data Sources'!$E7,'Cost Data Sources'!$D9,'Cost Data Sources'!$E9,'Cost Data Sources'!$F9) -> 0 | F7: =Properties!$F$4*'Water Access'!$C$6/100*MAX('Cost Data Sources'!$D7,'Cost Data Sources'!$E7,'Cost Data Sources'!$F7,'Cost Data Sources'!$D9,'Cost Data Sources'!$E9,'Cost Data Sources'!$F9) -> 0
C8: New water bills | D8: =Properties!$F$4*'Water Access'!$C$6/100*MIN('Cost Data Sources'!$D$5:$F$6)*Background!$C$8 - Properties!$F$4*'Water Access'!$C$6/100*MAX('Cost Data Sources'!$D$10:$F$10)*Background!$C$8 -> 0 | E8: =Properties!$F$4*'Water Access'!$C$6/100*MEDIAN('Cost Data Sources'!$D$5:$F$6)*Background!$C$8 - Properties!$F$4*'Water Access'!$C$6/100*MEDIAN('Cost Data Sources'!$D$10:$F$10)*Background!$C$8 -> 0 | F8: =Properties!$F$4*'Water Access'!$C$6/100*MAX('Cost Data Sources'!$D$5:$F$6)*Background!$C$8 - Properties!$F$4*'Water Access'!$C$6/100*MIN('Cost Data Sources'!$D$10:$F$10)*Background!$C$8 -> 0
C10: Water main installations | D10: =IF('Water Access'!$C$7="yes", 'Water Access'!$C$8*MIN('Cost Data Sources'!D8:F8), 0) -> 0 | E10: =IF('Water Access'!$C$7="yes", 'Water Access'!$C$8*MEDIAN('Cost Data Sources'!D8:F8), 0) -> 0 | F10: =IF('Water Access'!$C$7="yes", 'Water Access'!$C$8*MAX('Cost Data Sources'!D8:F8), 0) -> 0 | G10: over | H10: ='Water Access'!C8 -> 0 | I10: linear feet
C12: water access totals | D12: =SUM(D5:D10) -> 0 | E12: =SUM(E5:E10) -> 0 | F12: =SUM(F5:F10) -> 0
C15: Monitoring
C16: Monitoring well installation | D16: =Monitoring!$C$4*MIN('Cost Data Sources'!$D$25:$F$25) -> 0 | E16: =Monitoring!$C$4*MEDIAN('Cost Data Sources'!$D$25:$F$25) -> 0 | F16: =Monitoring!$C$4*MAX('Cost Data Sources'!$D$25:$F$25) -> 0
C17: Monitoring well maintenance / analysis | D17: =Monitoring!$C$4*Monitoring!$C$5*MIN('Cost Data Sources'!$D$26:$F$26)*Monitoring!$C$6 -> 0 | E17: =Monitoring!$C$4*Monitoring!$C$5*MEDIAN('Cost Data Sources'!$D$26:$F$26)*Monitoring!$C$6 -> 0 | F17: =Monitoring!$C$4*Monitoring!$C$5*MAX('Cost Data Sources'!$D$26:$F$26)*Monitoring!$C$6 -> 0 | G17: over | H17: =Monitoring!C5 -> 0 | I17: years
C19: Residential/property well sampling | D19: =IF(Monitoring!$C$9="yes", Properties!$F$4*Monitoring!$C$10/100*MIN('Cost Data Sources'!$D$33:$F$33)*Monitoring!$C$11*Monitoring!$C$12,0) -> 0 | E19: =IF(Monitoring!$C$9="yes", Properties!$F$4*Monitoring!$C$10/100*MEDIAN('Cost Data Sources'!$D$33:$F$33)*Monitoring!$C$11*Monitoring!$C$12,0) -> 0 | F19: =IF(Monitoring!$C$9="yes", Properties!$F$4*Monitoring!$C$10/100*MAX('Cost Data Sources'!$D$33:$F$33)*Monitoring!$C$11*Monitoring!$C$12,0) -> 0 | G19: over | H19: =Monitoring!C11 -> 0 | I19: years
C20: Residential/property air monitoring | D20: =IF(Monitoring!$C$15="yes", Properties!$F$4*Monitoring!$C$16/100*MIN('Cost Data Sources'!$D$36:$F$36)*Monitoring!$C$17*Monitoring!$C$18,0) -> 0 | E20: =IF(Monitoring!$C$15="yes", Properties!$F$4*Monitoring!$C$16/100*MEDIAN('Cost Data Sources'!$D$36:$F$36)*Monitoring!$C$17*Monitoring!$C$18,0) -> 0 | F20: =IF(Monitoring!$C$15="yes", Properties!$F$4*Monitoring!$C$16/100*MAX('Cost Data Sources'!$D$36:$F$36)*Monitoring!$C$17*Monitoring!$C$18,0) -> 0 | G20: over | H20: =Monitoring!C17 -> 0 | I20: years
C21: Air treatment system | D21: =IF(Monitoring!$C$15="yes",Properties!$F$4*Monitoring!$C$19/100*MIN('Cost Data Sources'!$D$34:$F$34)+Properties!$F$4*Monitoring!$C$19/100*MIN('Cost Data Sources'!$D$35:$F$35)*Monitoring!$C$20+Properties!$F$4*Monitoring!$C$19/100*MIN('Cost Data Sources'!$D$36:$F$36)*Monitoring!$C$20*Monitoring!$C$21,0) -> 0 | E21: =IF(Monitoring!$C$15="yes",Properties!$F$4*Monitoring!$C$19/100*MEDIAN('Cost Data Sources'!$D$34:$F$34)+Properties!$F$4*Monitoring!$C$19/100*MEDIAN('Cost Data Sources'!$D$35:$F$35)*Monitoring!$C$20+Properties!$F$4*Monitoring!$C$19/100*MEDIAN('Cost Data Sources'!$D$36:$F$36)*Monitoring!$C$20*Monitoring!$C$21,0) -> 0 | F21: =IF(Monitoring!$C$15="yes",Properties!$F$4*Monitoring!$C$19/100*MAX('Cost Data Sources'!$D$34:$F$34)+Properties!$F$4*Monitoring!$C$19/100*MAX('Cost Data Sources'!$D$35:$F$35)*Monitoring!$C$20+Properties!$F$4*Monitoring!$C$19/100*MAX('Cost Data Sources'!$D$36:$F$36)*Monitoring!$C$20*Monitoring!$C$21,0) -> 0 | G21: over | H21: =Monitoring!C20 -> 0 | I21: years
C23: Soil monitoring | D23: =IF(Monitoring!$C$24="yes", Monitoring!$C$25*MIN('Cost Data Sources'!$D$46:$F$46)*Monitoring!$C$26*Monitoring!$C$27*Monitoring!$C$28,0) -> 0 | E23: =IF(Monitoring!$C$24="yes", Monitoring!$C$25*MEDIAN('Cost Data Sources'!$D$46:$F$46)*Monitoring!$C$26*Monitoring!$C$27*Monitoring!$C$28,0) -> 0 | F23: =IF(Monitoring!$C$24="yes", Monitoring!$C$25*MAX('Cost Data Sources'!$D$46:$F$46)*Monitoring!$C$26*Monitoring!$C$27*Monitoring!$C$28,0) -> 0 | G23: over | H23: =Monitoring!C26 -> 0 | I23: years
C24: Surface water monitoring | D24: =IF(Monitoring!$C$31="yes", Monitoring!$C$32*MIN('Cost Data Sources'!$D$30:$F$30)*Monitoring!$C$33*Monitoring!$C$34*Monitoring!$C$35,0) -> 0 | E24: =IF(Monitoring!$C$31="yes", Monitoring!$C$32*MEDIAN('Cost Data Sources'!$D$30:$F$30)*Monitoring!$C$33*Monitoring!$C$34*Monitoring!$C$35,0) -> 0 | F24: =IF(Monitoring!$C$31="yes", Monitoring!$C$32*MAX('Cost Data Sources'!$D$30:$F$30)*Monitoring!$C$33*Monitoring!$C$34*Monitoring!$C$35,0) -> 0 | G24: over | H24: =Monitoring!C33 -> 0 | I24: years
C26: monitoring totals | D26: =SUM(D16:D24) -> 0 | E26: =SUM(E16:E24) -> 0 | F26: =SUM(F16:F24) -> 0
C29: Institutional Controls
C30: Restrictive covenants | D30: =Properties!$F$4*'Institutional Controls'!$C$3/100*MIN('Cost Data Sources'!$D$49:$F$49) -> 0 | E30: =Properties!$F$4*'Institutional Controls'!$C$3/100*MEDIAN('Cost Data Sources'!$D$49:$F$49) -> 0 | F30: =Properties!$F$4*'Institutional Controls'!$C$3/100*MAX('Cost Data Sources'!$D$49:$F$49) -> 0
C31: Ordinances | D31: ='Institutional Controls'!$C$4*MIN('Cost Data Sources'!$D$50:$F$50) -> 0 | E31: ='Institutional Controls'!$C$4*MEDIAN('Cost Data Sources'!$D$50:$F$50) -> 0 | F31: ='Institutional Controls'!$C$4*MAX('Cost Data Sources'!$D$50:$F$50) -> 0
C33: IC totals | D33: =SUM(D30:D31) -> 0 | E33: =SUM(E30:E31) -> 0 | F33: 0
C36: Oversight
C37: Staffing | D37: =Oversight!$C$4*Oversight!$C$5*MIN('Cost Data Sources'!D44:F44) -> 0 | E37: =Oversight!$C$4*Oversight!$C$5*MEDIAN('Cost Data Sources'!D44:F44) -> 0 | F37: =Oversight!$C$4*Oversight!$C$5*MAX('Cost Data Sources'!D44:F44) -> 0
C38: Reporting | D38: =Oversight!$C8*Oversight!$C10*MIN('Cost Data Sources'!D39:F39)+IF(Oversight!C9="yes",INT(Oversight!C10/5)*MIN('Cost Data Sources'!D41:F41),0) -> 0 | E38: =Oversight!$C8*Oversight!$C10*MEDIAN('Cost Data Sources'!D39:F39)+IF(Oversight!C9="yes",INT(Oversight!C10/5)*MEDIAN('Cost Data Sources'!D41:F41),0) -> 0 | F38: =Oversight!$C8*Oversight!$C10*MAX('Cost Data Sources'!D39:F39)+IF(Oversight!C9="yes",INT(Oversight!C10/5)*MAX('Cost Data Sources'!D41:F41),0) -> 0
C40: oversight totals | D40: =SUM(D37:D38) -> 0 | E40: =SUM(E37:E38) -> 0 | F40: 0
C43: Surface Water Impacts
C44: Surface Water Impacts | D44: =IF('Surface Water'!C3="yes",IF('Surface Water'!C9="yes",MIN('Cost Data Sources'!$D71:$F71)*'Surface Water'!$C10*'Surface Water'!$C11*13.5,0) + IF('Surface Water'!C6="yes",MIN('Cost Data Sources'!$D72:$F72)*'Surface Water'!$C7*'Surface Water'!$C8*13.5,0) + IF('Surface Water'!C12="yes",MIN('Cost Data Sources'!$D73:$F73)*'Surface Water'!$C13*'Surface Water'!$C14*13.5,0),0) -> 0 | E44: =IF('Surface Water'!C3="yes",IF('Surface Water'!C9="yes",MEDIAN('Cost Data Sources'!$D71:$F71)*'Surface Water'!$C10*'Surface Water'!$C11*13.5,0) + IF('Surface Water'!C6="yes",MEDIAN('Cost Data Sources'!$D72:$F72)*'Surface Water'!$C7*'Surface Water'!$C8*13.5,0) + IF('Surface Water'!C12="yes",MEDIAN('Cost Data Sources'!$D73:$F73)*'Surface Water'!$C13*'Surface Water'!$C14*13.5,0),0) -> 0 | F44: =IF('Surface Water'!C3="yes",IF('Surface Water'!C9="yes",MAX('Cost Data Sources'!$D71:$F71)*'Surface Water'!$C10*'Surface Water'!$C11*13.5,0) + IF('Surface Water'!C6="yes",MAX('Cost Data Sources'!$D72:$F72)*'Surface Water'!$C7*'Surface Water'!$C8*13.5,0) + IF('Surface Water'!C12="yes",MAX('Cost Data Sources'!$D73:$F73)*'Surface Water'!$C13*'Surface Water'!$C14*13.5,0),0) -> 0
C46: surface water impacts totals | D46: =SUM(D44:D45) -> 0 | E46: =SUM(E44:E45) -> 0 | F46: 0
C52: TOTAL COSTS | D52: =SUM(D40,D26,D12,D46,D33) -> 0 | E52: =SUM(E40,E26,E12,E46,E33) -> 0 | F52: =SUM(F40,F26,F12,F46,F33) -> 0
C56: Other Remedial Activities
C57: Pump and treat | D57: =MIN('Cost Data Sources'!$D$57:$F$58)+(MIN('Cost Data Sources'!$D$54:$F$56)*Background!$C$8) -> 2484351.779 | E57: =MEDIAN('Cost Data Sources'!$D$57:$F$58)+(MEDIAN('Cost Data Sources'!$D$54:$F$56)*Background!$C$8) -> 4687231.841 | F57: =MAX('Cost Data Sources'!$D$57:$F$58)+(MAX('Cost Data Sources'!$D$54:$F$56)*Background!$C$8) -> 8622162.055 | G57: over | H57: =Background!C8 -> 0 | I57: years
C58: Permeable Reactive Barrier | D58: ='Cost Data Sources'!D59 -> 643008.6957 | E58: ='Cost Data Sources'!E59 -> 993740.7115 | F58: ='Cost Data Sources'!F59 -> 1461383.399
C59: Hydraulic control | D59: =MIN('Cost Data Sources'!$D$60:$F$61) -> 2132462.333 | E59: =MEDIAN('Cost Data Sources'!$D$60:$F$61) -> 6921889.695 | F59: =MAX('Cost Data Sources'!$D$60:$F$61) -> 11711317.06
C60: In-situ chemical oxidation | D60: =MIN('Cost Data Sources'!$D63:$F63) -> 12166922.19 | E60: =MEDIAN('Cost Data Sources'!$D63:$F63) -> 12166922.19 | F60: =MAX('Cost Data Sources'!$D63:$F63) -> 12166922.19
C61: In-situ thermal remediation | D61: =MIN('Cost Data Sources'!$D64:$F64) -> 17206689.3 | E61: =MEDIAN('Cost Data Sources'!$D64:$F64) -> 17206689.3 | F61: =MAX('Cost Data Sources'!$D64:$F64) -> 17206689.3
C62: in-situ bioremediation | D62: =MIN('Cost Data Sources'!$D62:$F62) -> 29538.21196 | E62: =MEDIAN('Cost Data Sources'!$D62:$F62) -> 210987 | F62: =MAX('Cost Data Sources'!$D62:$F62) -> 8017514.674
C63: soil excavation | D63: =MIN('Cost Data Sources'!$D65:$F65)*H63 -> 0 | E63: =MEDIAN('Cost Data Sources'!$D65:$F65)*H63 -> 0 | F63: =MAX('Cost Data Sources'!$D65:$F65)*H63 -> 0 | G63: for | H63: 0 | I63: tons of removal
C64: soil vapor extraction | D64: =MIN('Cost Data Sources'!$D66:$F66) -> 53211 | E64: =MEDIAN('Cost Data Sources'!$D66:$F66) -> 302204 | F64: =MAX('Cost Data Sources'!$D66:$F66) -> 1692398.887
C65: air sparging | D65: =MIN('Cost Data Sources'!$D67:$F67) -> 28885.55813 | E65: =MEDIAN('Cost Data Sources'!$D67:$F67) -> 190960.3206 | F65: =MAX('Cost Data Sources'!$D67:$F67) -> 485270.625

Sheet Charts

Sheet Cost Data Sources
B1: Cost Spreadsheet
D3: Cost
B4: Municipal Water | D4: Lower bound | E4: Expected Cost 1 | F4: Upper bound | H4: Units | I4: Price Year | J4: Freq. | K4: Source
C5: Municipal Water Bill | D5: 640 | E5: 959 | F5: 1277 | I5: 2020 | J5: Annual | K5: aa
C6: Municipal Water Bill | E6: 612 | I6: 2020 | J6: Annual | K6: KLA
C7: Municipal Hookup | E7: 12000 | I7: 2020 | J7: Once | K7: KLA
C8: Water Mainline | E8: 222 | H8: linear foot | I8: 2020 | J8: Once | K8: KLA
C9: Municipal Hookup + Mainline | D9: 16400 | E9: 18450 | F9: 20500 | I9: 2020 | J9: Once | K9: d, e
C10: Operating cost of well | D10: 300 | E10: 350 | F10: 500 | I10: 2020 | J10: Annual | K10: hh
B12: Well Replacement/sealing
C13: Well Drilling & Install | E13: 22541.01782 | H13: Well | I13: 2020 | J13: Once | K13: KLA,
C14: Well Drilling & Install | D14: 1432.691811 | E14: 8023.074141 | F14: 14613.45647 | H14: Well | I14: 2020 | J14: Once | K14: b, c
C15: Well Drilling & Install | D15: 3750 | E15: =AVERAGE(D15,F15) -> 9525 | F15: 15300 | H15: Well | I15: 2020 | J15: Once | K15: ii
C16: Well Drilling & Install (per foot) | D16: 25 | E16: =AVERAGE(D16,F16) -> 43 | F16: 61 | H16: Foot | I16: 2020 | J16: Once | K16: ii
C17: Abandon Existing Well | D17: 764.1022991 | E17: 1098.397055 | F17: 1432.691811 | H17: Well | I17: 2020 | J17: Once | K17: k
C18: Abandon Existing Well | E18: 3820.511496 | H18: Well | I18: 2020 | J18: Once | K18: KLA
B20: Water Delivery
C21: Bottled Water | E21: 35 | I21: 2020 | K21: j
C22: Bottled Water | E22: 20 | I22: 2020 | K22: KLA
B24: Groundwater Monitoring
C25: Monitoring Wells | D25: 8332 | E25: 45700 | F25: 75731 | H25: per well | I25: 2020 | J25: Once | K25: a, KLA, pp (Appendix D)
C26: Lab Test | E26: 478.5 | H26: per test | I26: 2020 | J26: Irregular | K26: a
C27: Monitor Well Analysis | D27: 1078 | E27: =AVERAGE(D27,F27) -> 1617 | F27: 2156 | H27: per well | I27: 2020 | J27: Annual | K27: KLA
B29: Surface water Monitoring
C30: Lab Test | E30: 478.5 | H30: per test | I30: 2020 | J30: Irregular | K30: a
B32: Household Costs
C33: Testing existing wells | E33: 478.5 | H33: per test | I33: 2020 | J33: Annual
C34: VOC System Installation | E34: 11631.76037 | H34: per house | I34: 2020 | J34: Once | K34: a
C35: VOC Operating Costs + Depreciation | D35: 100 | E35: 348.952811 | F35: 500 | H35: per house | I35: 2020 | J35: Annual | K35: a
C36: Onsite VOC Test | D36: 280 | E36: 420 | F36: 560 | H36: per test | I36: 2020 | J36: Irregular | K36: bb
B38: Site Management and Monitoring Costs
C39: Reports to agencies | D39: 57400 | E39: 57400 | F39: 57400 | H39: Site | I39: 2020 | J39: Annual | K39: KLA
C40: Annual Operating costs ($16,500/yr) | D40: 16500 | E40: 16500 | F40: 16500 | H40: Site | I40: 2020 | J40: Annual | K40: KLA
C41: 5-Year Review (Superfund) | D41: 20000 | E41: 20000 | F41: 20000 | H41: Site | I41: 2020 | J41: 5-year | K41: rr
C42: Remediation Action Plan (RAP) | D42: 4000 | E42: =AVERAGE(D42,F42) -> 19500 | F42: 35000 | H42: Site | I42: 2020 | K42: ii
B44: FTE Oversight cost | D44: 47000 | E44: 87000 | F44: 120000 | H44: per FTE/year | I44: 2020 | K44: BLS occupation OCC
B46: Soil VOC Gas Monitoring | E46: 4049 | H46: per test | I46: 2020 | K46: kk
B48: Institutional Controls
C49: Restrictive Covenant | D49: 1098 | E49: =AVERAGE(D49,F49) -> 3080 | F49: 5062 | H49: per RC | I49: 2020 | J49: once | K49: jj, kk | L49: assuming 4 hours of legal fees for MI-bar 2020 average ($267/hr) + typical $30 recording fee
C50: Ordinance | D50: 24042 | E50: =AVERAGE(D50,F50) -> 37021 | F50: 50000 | H50: per ordinance | I50: 2020 | J50: once | K50: KLA, ll
B53: Active Treatment
C54: Pump and treat O&M | E54: 1294511.538 | I54: 2020 | J54: annual | K54: mm (Table 3-1)
C55: Pump and treat O&M | E55: 1548841.443 | I55: 2020 | J55: annual | K55: pp (Appendix D)
C56: Pump and treat O&M | D56: 263049.0119 | E56: 379959.6838 | F56: 1066809.881 | I56: 2020 | J56: annual | K56: qq (Exhibit 3)
C57: Pump and treat | E57: 6451696.884 | I57: 2020 | J57: capital cost | K57: pp (Appendix D)
C58: Pump and treat | D58: 2484351.779 | E58: 2922766.798 | F58: 8622162.055 | I58: 2020 | J58: capital cost | K58: qq (Exhibit 3)
C59: Permeable Reactive Barrier | D59: 643008.6957 | E59: 993740.7115 | F59: 1461383.399 | I59: 2020 | J59: capital cost | K59: qq (Exhibit 3)
C60: hydraulic control | E60: 11711317.06 | I60: 2020 | J60: capital cost | K60: pp (Appendix D)
C61: hydraulic control | E61: 2132462.333 | I61: 2020 | J61: annual | K61: pp (Appendix D)
C62: in-situ bioremediation | D62: 29538.21196 | E62: 210987 | F62: 8017514.674 | I62: 2020 | J62: capital cost | K62: ww
C63: in-situ chemical oxidation | E63: 12166922.19 | I63: 2020 | J63: capital cost | K63: nn
C64: in-situ thermal remediation | E64: 17206689.3 | I64: 2020 | J64: capital cost | K64: nn
C65: soil excavation | D65: 65 | E65: 75 | F65: 150 | H65: per ton | I65: 2020 | J65: capital cost | K65: vv
C66: soil vapor extraction | D66: 53211 | E66: 302204 | F66: 1692398.887 | I66: 2020 | J66: capital cost | K66: vv, ww
C67: air sparging | D67: 28885.55813 | E67: 190960.3206 | F67: 485270.625 | I67: 2020 | J67: capital cost | K67: ww
B70: Recreational Expenditures
C71: Recreational Fishing Spending | D71: =(1-0.1)*E71 -> 31.5 | E71: 35 | F71: =(1+0.1)*E71 -> 38.5 | H71: per fishing day | I71: 2020 | K71: ss
C72: Beach visits | D72: 35 | E72: 40 | F72: 75 | H72: Per visitor day | I72: 2020 | K72: tt
C73: Boating Visits | D73: 150 | E73: =(F73+D73)/2 -> 250 | F73: 350 | H73: per boating day | I73: 2020 | K73: uu
A74: Sources
A76: a | B76: National Research Council. 2013. Alternatives for managing the nation's complex contaminated groundwater sites: National Academies Press. | C76: EPA. 2008. Indoor Air Vapor Intrusion Mitigation Approaches. EPA. https://www.epa.gov/sites/default/files/2015-09/documents/600r08115.pdf
A77: b | B77: https://homeguide.com/costs/well-drilling-cost
A78: c | B78: https://www.homeadvisor.com/cost/landscape/drill-a-well/
A79: d | B79: EGLE legislative report (p.262, pdf 8) lists EGLE expense of $82,000 for homes on 4th street between M-43 and Almena Drive. Looking on Zillow appears to be 5 homes
A80: e | B80: https://www.mlive.com/news/kalamazoo/2015/12/more_oshtemo_township_properti.html (60 homes at $1.23 million)
A81: f | B81: Figure2 3rd FYR (p. 51 - 1990 ROD)
A82: g | B82: Figure3 and 4 3rd FYR (p. 52,53 - 2003 and 2005 municipal supply area)
A83: h | B83: 3rd FYR p. 42
A84: i | B84: 3rd FYR p. 15 (addional 92 in projected GRZ zone)
A85: j | B85: Sara Pearson email 2/4/22
A86: k | B86: https://www.michigan.gov/egle/0,9429,7-135-3313_3675_3689-8003--,00.html#:~:text=Q%3A%20How%20much%20will%20it,well%20in%20Michigan%20is%20%24500. | C86: https://www.cityofmadison.com/water/water-quality/private-wells/well-abandonment/well-abandonment-frequently-asked-questions#:~:text=A%20%E2%80%9Ctypical%E2%80%9D%20abandonment%20costs%20%24800%20-%20%241500%20but,available%20to%20help%20pay%20for%20the%20well%20abandonment%3F
A87: l | B87: EPA 3rd 5-year (p.9)
A88: m | B88: 2005 ROD (p.5, pdf 10)
A89: n | B89: Legislative report (p.257, pdf 3)
A90: o | B90: EPA 3rd 5-year (p.59)
A91: p | B91: EPA 3rd 5-year (p.6)
A92: q | B92: EPA 1st 5-year (p. 13)
A93: r | B93: 2005 ROD (p. 1, pdf 6)
A94: s | B94: EPA 1st 5-year (p.14)
A95: t | B95: EPA 3rd 5-year (p.16, 42)
A96: u | B96: 2005 ROD (p. 3, pdf 8)
A97: v | B97: 2005 ROD (p. 6, pdf 11)
A98: w | B98: EPA 3rd 5-year (p.6)
A99: x | B99: EPA 3rd 5-year (p.10)
A100: y | B100: https://www.mlive.com/news/kalamazoo/2015/12/more_oshtemo_township_properti.html
A101: z | B101: EPA 3rd 5-year (p.14)
A102: aa | B102: https://graham.umich.edu/media/files/MI-statewide-water-affordability-assessment-report.pdf | C102: table 3
A103: bb | B103: Angi.com: https://www.angi.com/articles/how-much-does-indoor-air-quality-testing-cost.htm | C103: 2022-04-14
A104: cc | B104: EPA. 2001. Groundwater Pump and Treat Systems: Summary of Selected Cost and Performance Information at Superfund-financed Sites. Washington, DC: Environmental Protection Agency.
A105: dd | B105: https://www.bls.gov/oes/current/oes_stru.htm#19-0000 (19-4040 Environmental Science and Geoscience Technicians)
A106: ee | B106: https://www.landsearch.com/industrial/michigan
A107: oes | B107: https://www.bls.gov/oes/current/oes_nat.htm#21-0000
A108: ff | B108: https://www.mswmanagement.com/landfills/article/13003375/landfill-economics-part-3-closing-up-shop
A109: gg | B109: https://www.homeadvisor.com/cost/outdoor-living/pave-a-parking-lot/
A110: KLA | B110: The KLA Group
A111: hh | B111: https://mywaterearth.com/well-water-vs-city-water-cost/
A112: ii | B112: https://emsenv.com/2016/04/28/remedial-action-plan-cost/#:~:text=We%20have%20developed%20RAPs%20ranging,%2435%2C000%20for%20large%20chemical%20spills.
A113: jj | B113: https://www.michbar.org/file/pmrc/articles/0000155.pdf
A114: kk | B114: Charlevoix - USACE Focused Feasability Study (2019)
A115: ll | B115: Wickes - MACTEC Evaluation of Interim Response Activities (2008)
A116: mm | B116: ARCADIS Remedial Investigation Plan (2012)
A117: nn | B117: Wash King proposed remediation plan for OU2 (2019)
A118: oo | B118: Wash King 3rd FYR (2016)
A119: pp | B119: MACTEC 2008 Evaluation of Interim Response Activites (2008)
A120: qq | B120: https://www.epa.gov/sites/default/files/2015-04/documents/cost_analysis_groundwater.pdf
A121: rr | B121: https://www.michigan.gov/egle/-/media/Project/Websites/egle/Documents/Reports/RRD/Report-2021-06-Federal-Superfund-FY20.pdf
A122: ss | B122: Creel Clerks & Angler Surveys (michigan.gov)
A123: tt | B123: Spending Pattern of Outdoor Recreation Visitors to National Forests (wi.gov)
A124: uu | B124: https://www.townandtourist.com/boat-transportation-cost/ | D124: 2023-10-27
A125: vv | B125: https://www.waterboards.ca.gov/water_issues/programs/ustcf/docs/cost_guidelines/202011_remediation_cost_guidelines_appendix.pdf
A126: ww | B126: https://semspub.epa.gov/work/HQ/189904.pdf

Sheet ResponseDomains
A1: Background
A2: 1
A3: 2 | B3: yes
B4: no
B5: unsure
A8: 3 | B8: bedrock
B9: sand and gravel
B10: silts and clays
B11: unsure
A14: 4 | B14: yes
B15: no
B16: unsure
A19: 5 | B19: yes
B20: no
B21: unsure
A27: Water Access
A28: 9 | B28: yes
B29: no
B30: unsure
